Cogmind - Beta 13 @@@ ROGUE MODE // 2024.04.16 @ 19:30:45 Player: DeathByZer0 Result: Destroyed by G-34 Mercenary with Small Laser Performance ------------- Evolutions (1) 500 Regions Visited (2) 400 Robots Destroyed (8) 40 Value Destroyed (238) 238 Prototype IDs (2) 40 Alien Tech Used (0) 0 Bonus (0) 0 TOTAL SCORE: 1218 Bonus ------- None Cogmind --------- Core Integrity 0/400 Matter 251/300 Energy 83/100 System Corruption 15% Temperature Cool (6) Movement Core (100) Ox1 Location -9/Materials Parts ------- > --- POWER (1) -------- (None) > --- PROPULSION (3) --- (None) > --- UTILITY (3) ------ Heat Sink Utility Shielding > --- WEAPON (2) ------- Small Laser Beam Cannon > --- INVENTORY (5) ---- Field Recycling Unit (0) Small Laser Peak State ------------ > --- POWER ------------ Light Ion Engine > --- PROPULSION ------- Improved Hover Unit Improved Hover Unit Improved Hover Unit > --- UTILITY ---------- Small Storage Unit ECM Suite Power Shielding > --- WEAPON ----------- Small Laser Small Laser > --- INVENTORY -------- Heat Sink Targeting Computer Utility Shielding Field Recycling Unit [Rating: 12] Favorites ----------- Power Light Ion Engine Engine Light Ion Engine Propulsion Improved Hover Unit Leg Aluminum Leg Wheel Wheel Hover Unit Improved Hover Unit Utility ECM Suite Device ECM Suite Storage Small Storage Unit Processor Targeting Computer Protection Power Shielding Weapon Small Laser Energy Gun Small Laser Energy Cannon Beam Cannon Build | -11 -10 -9 ------- Run | Yrd Mat Mat Slots Evolved 2 | . . 2 Power . | . . . Propulsion 1 | . . 1 Utility 1 | . . 1 Weapon . | . . . Parts Attached 28 | 6 8 14 Power 3 | 1 . 2 Engine 3 | 1 . 2 Core . | . . . Reactor . | . . . Propulsion 7 | 2 3 2 Treads . | . . . Leg 1 | . . 1 Wheel 3 | 2 1 . Hover 3 | . 2 1 Flight . | . . . Utility 10 | 1 5 4 Device 4 | 1 2 1 Storage 1 | . 1 . Processor 2 | . 1 1 Hackware . | . . . Protection 3 | . 1 2 Artifact . | . . . Weapon 8 | 2 . 6 Energy Gun 7 | 2 . 5 Energy Cannon 1 | . . 1 Ballistic Gun . | . . . Ballistic Cannon . | . . . Launcher . | . . . Special Weapon . | . . . Impact Weapon . | . . . Slashing Weapon . | . . . Piercing Weapon . | . . . Special Melee Weapon . | . . . Unidentified Prototypes . | . . . Parts Lost 13 | . . 13 Power 2 | . . 2 Propulsion 4 | . . 4 Utility 4 | . . 4 Weapon 3 | . . 3 Highest Loss Streak 12 | . . 12 To Critical Strikes . | . . . Average Slot Usage (%) 88 | . 98 79 Engine 11 | . 14 9 Wheel 4 | . 10 . Hover 17 | . 17 17 Device 11 | . 11 10 Storage 7 | . 5 8 Processor 3 | . 7 . Protection 6 | . 2 10 Energy Gun 24 | . 28 21 Naked Turns . | . . . Heaviest Build 19 | 6 12 19 Greatest Support 21 | 20 20 21 Greatest Overweight (x) 3 | . . 3 Average Overweight (x) . | . . . Largest Inventory Capacity 8 | 5 8 8 Average Capacity 6 | 5 6 7 Most Carried 7 | 5 6 7 Average Carried 4 | 2 4 5 Final Capacity 8 | 5 8 5 Final Carried 6 | 4 6 2 Class Distribution -------------------- 100% | Mutant Dominant Class ---------------- Mutant | -10/Materials Mutant | -9/Materials Resources | -11 -10 -9 ----------- Run | Yrd Mat Mat Matter Collected 417 | 260 . 157 Remotely . | . . . Salvage Created 304 | 92 . 212 Parts 14 | 6 . 8 Haulers Intercepted . | . . . Recyclers Shooed . | . . . Parts Field Recycled . | . . . Retrieved Matter . | . . . Parts Self-Destructed . | . . . Prevented . | . . . Kills | -11 -10 -9 ------- Run | Yrd Mat Mat Combat Hostiles Destroyed 6 | 1 . 5 Guns 6 | 1 . 5 Classes Destroyed 5 | 3 . 2 Worker 1 | 1 . . Tunneler 1 | 1 . . Grunt 4 | 1 . 3 Brawler 1 | . . 1 Sentry 1 | . . 1 Best Kill Streak 2 | 1 . 2 Combat Bots Only 2 | 1 . 2 Max Kills in Single Turn 1 | 1 . 1 Gunslinging . | . . . Exploded . | . . . Melee . | . . . Uniques/NPCs Destroyed . | . . . Combat | -11 -10 -9 -------- Run | Yrd Mat Mat Hostile Shots Fired 128 | 6 1 121 Missed 25 | 2 1 22 Damage Taken 1391 | 46 . 1345 Core 426 | 24 . 402 Absorbed by Shields . | . . . Redirected to Shielding 60 | . . 60 Core Remaining (%) 90 | 90 90 . Volleys Fired 33 | 13 . 20 Largest 2 | 2 . 2 Hottest 100 | 80 . 100 Shots Fired 64 | 26 . 38 Gun 64 | 26 . 38 Cannon . | . . . Launcher . | . . . Special . | . . . Kinetic . | . . . Thermal 64 | 26 . 38 Explosive . | . . . Electromagnetic . | . . . Robot Hit Streak 17 | 4 . 17 Robot Miss Streak 4 | 4 . 3 Penetration Max . | . . . Secondary Targets 3 | . . 3 Max Gunslinging Chain 1 | . . 1 Shots Hit Robots 39 | 13 . 26 Core Hits 16 | 4 . 12 Critical Kills . | . . . Critical Parts Destroyed . | . . . Critical Strikes 2 | . . 2 Burn 2 | . . 2 Melee Attacks . | . . . Impact . | . . . Slashing . | . . . Piercing . | . . . Sneak Attacks . | . . . Combat Hostiles . | . . . Follow-up Attacks . | . . . Damage Inflicted 472 | 159 . 313 Guns 472 | 159 . 313 Cannons . | . . . Explosions . | . . . Melee . | . . . Ramming . | . . . Kinetic . | . . . Thermal 472 | 159 . 313 Explosive . | . . . Electromagnetic . | . . . Impact . | . . . Slashing . | . . . Piercing . | . . . Highest Corruption 15 | . . 15 Average Corruption 10 | . . 10 Corruption Purged . | . . . Corruption Blocked . | . . . Effects 6 | . . 6 Message Errors 1 | . . 1 Matter Fused 2 | . . 2 Heat Flow Errors 1 | . . 1 Misdirections 2 | . . 2 Overload Shots . | . . . Overflow Damage . | . . . Projectiles . | . . . Explosions . | . . . Melee . | . . . Knockbacks . | . . . Impact . | . . . Kinetic . | . . . Secondary . | . . . Self-Inflicted Damage . | . . . Shots . | . . . Rammed . | . . . Targets Rammed . | . . . Kicked . | . . . Crushed . | . . . Highest Temperature 275 | 160 . 275 Average Temperature 117 | 90 . 132 Received Heat Transfer 528 | 24 . 504 Siege Activations . | . . . Robots Corrupted . | . . . Combat Hostiles . | . . . Parts Fried . | . . . Impact Corruptions . | . . . Robots Melted . | . . . Combat Hostiles . | . . . Parts Melted 4 | 1 . 3 Heat Transferred 1316 | 350 . 966 Parts Sabotaged . | . . . Parts Stolen . | . . . Parts Stripped . | . . . Power Chain Reactions . | . . . Alert | -11 -10 -9 ------- Run | Yrd Mat Mat Peak Influence 103 | 30 72 103 Initial 29 | . 19 29 Average 44 | 11 41 59 Maximum Alert Level . | . . . Low Security (%) 100 | 100 100 100 Level 1 . | . . . Level 2 . | . . . Level 3 . | . . . Level 4 . | . . . Level 5 . | . . . High Security . | . . . Max Security . | . . . Squads Dispatched 4 | . 3 1 Investigation 3 | . 3 . Extermination . | . . . Reinforcement 1 | . . 1 Assault . | . . . Garrison . | . . . Intercept . | . . . Searches Triggered . | . . . Construction Impeded . | . . . Haulers Reinforced . | . . . Active Scanning Responses . | . . . Cargo Convoy Interrupts . | . . . Stealth | -11 -10 -9 --------- Run | Yrd Mat Mat Distress Signals 2 | . 1 1 Communications Jammed . | . . . Distress Signals . | . . . Times Spotted 19 | 1 2 16 Peak Tracking Total 6 | 1 2 6 Tactical Retreats 5 | . 2 3 Traps | -11 -10 -9 ------- Run | Yrd Mat Mat Traps Triggered 2 | . 2 . Indirectly . | . . . Trap Hack Attempts . | . . . Triggered . | . . . Disarmed . | . . . Reprogrammed . | . . . Reused . | . . . Traps Extracted . | . . . Installed . | . . . Triggered . | . . . Machines | -11 -10 -9 ---------- Run | Yrd Mat Mat Machines Disabled . | . . . Max in Single Turn . | . . . Machines Repaired . | . . . Machines Dismantled . | . . . Machines Sabotaged . | . . . Overloaded Fab Kills . | . . . Hacking | -11 -10 -9 --------- Run | Yrd Mat Mat Machines Accessed 8 | . 7 1 Terminals 8 | . 7 1 Fabricators . | . . . Repair Stations . | . . . Recycling Units . | . . . Scanalyzers . | . . . Garrison Access . | . . . Total Hacks 32 | . 26 6 Successful 24 | . 21 3 Failed 8 | . 5 3 Catastrophic . | . . . Database Lockouts . | . . . Manual . | . . . Terminals 32 | . 26 6 Fabricators . | . . . Repair Stations . | . . . Recycling Units . | . . . Scanalyzers . | . . . Garrison Access . | . . . Terminal Hacks 24 | . 21 3 Record 12 | . 12 . Robot Analysis 2 | . 1 1 Prototype ID Bank 1 | . 1 . Alert Level 2 | . 1 1 Locate Traps 3 | . 2 1 Investigation Status 1 | . 1 . Recall Investigation 1 | . 1 . Hauler Manifests 1 | . 1 . Zone Layout 1 | . 1 . Fabricator Hacks . | . . . Repair Station Hacks . | . . . Recycling Unit Hacks . | . . . Scanalyzer . | . . . Garrison Access Hacks . | . . . Unauthorized Hacks . | . . . Terminals . | . . . Fabricators . | . . . Repair Stations . | . . . Recycling Units . | . . . Scanalyzers . | . . . Garrison Access . | . . . Data Cores Recovered . | . . . Used . | . . . Hacking Detections 6 | . 5 1 Full Trace Events 2 | . 2 . Feedback Events . | . . . Feedback Blocked . | . . . Robot Schematics Acquired . | . . . Robots Built . | . . . Authchips . | . . . Time . | . . . Total Robot Build Rating . | . . . Part Schematics Acquired . | . . . Parts Built . | . . . Authchips . | . . . Time . | . . . Total Part Build Rating . | . . . Parts Repaired . | . . . Time . | . . . Parts Recycled . | . . . Recycled Matter . | . . . Retrieved Matter . | . . . Retrieved Components . | . . . Parts Scanalyzed . | . . . Part Schematics Acquired . | . . . Parts Damaged . | . . . Bothacking | -11 -10 -9 ------------ Run | Yrd Mat Mat Used RIF Installer . | . . . Robots Hacked . | . . . Non-combat . | . . . Combat . | . . . Robot Hacks Applied . | . . . Relay Couplers Released . | . . . Fabnet Peak Effective % . | . . . Robots Rewired . | . . . Allies Hacked . | . . . Hacks Repelled . | . . . Allies | -11 -10 -9 -------- Run | Yrd Mat Mat Total Allies . | . . . Largest Group . | . . . Highest-Rated Group . | . . . Highest-Rated Ally . | . . . Total Orders . | . . . Ally Attacks . | . . . Total Damage . | . . . Kills . | . . . Allies Corrupted . | . . . Allies Melted . | . . . Intel | -11 -10 -9 ------- Run | Yrd Mat Mat Robot Analysis Total 2 | . 1 1 Derelict Logs Recovered . | . . . Drone Launches . | . . . Drone Recoveries . | . . . Exploration | -11 -10 -9 ------------- Run | Yrd Mat Mat Turns Passed 721 | 126 267 328 Spaces Moved 708 | 96 376 236 Core 52 | 19 . 33 Treads . | . . . Legs 14 | . . 14 Wheels 180 | 77 103 . Hover 462 | . 273 189 Flight . | . . . Fastest Speed 50 | 50 56 52 Average Speed 73 | 74 62 89 Slowest Speed 200 | 80 80 200 Overloaded Moves . | . . . Propulsion Burnouts . | . . . Robots Hopped . | . . . Cave-ins Triggered . | . . . Exploration Rate (%) 25 | 7 53 20 Regions Visited 2 Branch Regions . Pre-discovered Areas . | . . . Known Exits Taken . | . . . Unknown Exits Taken 2 | 1 1 . Scrap Searched . | . . . Spaces Dug . | . . . Terrain Destroyed . | . . . Melee . | . . . Projectile . | . . . AOE . | . . . Terrain Rammed . | . . . Walls Destroyed . | . . . Machines Disabled . | . . . Actions | -11 -10 -9 --------- Run | Yrd Mat Mat Total 844 | 124 407 313 Wait 39 | . 4 35 Move 706 | 95 375 236 Hop . | . . . Pick Up 29 | 10 12 7 Fast Attach . | . . . Attach 17 | 6 1 10 Detach . | . . . Swap 11 | . 7 4 Drop 9 | . 8 1 Fire 33 | 13 . 20 Melee . | . . . Ram . | . . . Kick . | . . . Crush . | . . . Escape Stasis . | . . . Rewire . | . . . Trap . | . . . Miscellaneous . | . . . Route ------- -11/Scrapyard -10/Materials (discovered 3 exits: *Mat x2 / [*Min]) -9/Materials History --------- Turn | Location | Event 2 | -11/Scrapyard | Met Revision 17 64 | -11/Scrapyard | Discovered new exit (range 8) 127 | -11/Scrapyard | Entered Materials 237 | -10/Materials | Discovered new exit (range 11) 294 | -10/Materials | Discovered new exit (range 7) 306 | -10/Materials | Build established: Mutant 349 | -10/Materials | Discovered new exit (range 11) 394 | -10/Materials | Entered another Materials area 394 | -9/Materials | Evolved 2 slots: Propulsion x1, Utility x1 646 | -9/Materials | Core integrity fell below 50% 685 | -9/Materials | System corruption reached 10% 697 | -9/Materials | Core integrity fell below 20% 722 | -9/Materials | Destroyed by G-34 Mercenary with Small Laser Last Messages --------------- Bruiser. 00641_ Sml. Laser destroyed. 00644_ ECM Suite destroyed. 00644_ System corrupted by crushing effect (+3). 00646_ Sml. Storage Unit destroyed. 00647_ Acquired Sml. Laser. 00647_ Power Shielding destroyed. 00647_ System corrupted by crushing effect (+1). 00663_ Aluminum Leg destroyed. 00672_ System corrupted: Heat flow error (+216). 00684_ Targeting Computer destroyed. 00684_ System corrupted by crushing effect (+3). 00695_ Imp. Ion Engine destroyed. 00695_ System corrupted by crushing effect (+3). 00700_ System corrupted: Matter fused (-6). 00700_ B-36 Bruiser destroyed. 00700_ Switching to secondary target: G-34 Mercenary. 00717_ System corrupted: Matter fused (-8). 00717_ Acquired Beam Cannon. Map ----- +----------------------------------------------------+ | """ #?????????????????????????????????????????? | | """ #?????????????????????????????????????????? | | """ #?????????????????????????????????????????? | | ^ #?????????????????????????????????????????? | | #?????????????????????????????????????????? | | #?????????????????????????????????????????? | | ######################? ??????????????????? | | ""????????????????? | | ############# ??????????????? | | ????????????# ?????????????? | | ????????????# ?????????????? | | ????????????# #????????????? | | ????????????#^ #????????????? | | ????????????# ^ T [#????????????? | | ????????????# #????????????? | | #######?????# " """"" #????????????? | | #????## """"""""" ##???????????? | | ###### """ """ # ??????????? | | """ + / ??????????? | | [ """ ###### #???????????? | | [ """ #????##=% g #####?????????????????? | | """ #?????# ########g#####???????????????????? | | #?????# #???# g #???????????????????? | | #?????# #???# """#???????????????????? | | #######?????# #???# """#???????????????????? | | ######## #???# @"""#???????????????????? | | # # #???#! #???????????????????? | | ### # ! """# #???# !! #???????????????????? | | ??# #%=["""# #???# !! #???????????????????? | | ??# + = """# #???# #???????????????????? | | ??# #= # #???# #???????????????????? | | ?## ######## #???##########???????????????????? | | ?# ####### #####????????????????????????????? | | ?# ?????????????????????? | | ?# ?????????????????????? | | ?# ####### ?????????????????????? | | ?######?????###########+### ?????????????????????? | | ?????????????????????????????????????????????????? | | ?????????????????????????????????????????????????? | | ?????????????????????????????????????????????????? | | ?????????????????????????????????????????????????? | | ?????????????????????????????????????????????????? | | ?????????????????????????????????????????????????? | | ?????????????????????????????????????????????????? | | ?????????????????????????????????????????????????? | | ?????????????????????????????????????????????????? | | ?????????????????????????????????????????????????? | | ?????????????????????????????????????????????????? | | ?????????????????????????????????????????????????? | | | +----------------------------------------------------+ Best States ------------- Heat Dissipation 38 Energy Generation 12 Energy Capacity 265 Matter Stores 300 Matter Capacity 300 Sight Range 16 Terrain Scan Density 10 ECM Strength 1 Power Shielding 33 Utility Shielding 33 Evasion (%) 54 Targeting Accuracy 5 Item Schematics ----------------- None Robot Schematics ------------------ None Fabricated ------------ Nothing Alien Tech Used ----------------- None Achievements -------------- GoHome() Party Time Challenges ------------ None Game ------ Seed ClaymoresMultinovaBay Manual? 0 Play Time 00:38:05 Cumulative 4.2 hours Start 2024.04.16 @ 18:14:37 End 2024.04.16 @ 19:30:45 Sessions 3 Manual Loads 0 Difficulty Rogue Special Mode None Game No. 2 Rogue 2 Adventurer 0 Explorer 0 Win Type - Total 0 Types 0/0/0/0/0/0/0/0/0 Lore% 2 Gallery% 5 Achievement% 7 Wizard Run 0 Options --------- Layout 1 ASCII 0 Keyboard 0 Movement Mouse Keybinds 0 Fullscreen 2 Font 32/SmallcapsGlow Map View 50x35 Zoom Use 0% Tactical HUD 1 Map Filters NONE Filters NONE Steam 1 RUN: a395a7fb-030d-4885-98bb-621ccbf726ea